bitfinex-derivatives/quotes_SOLF0:USTF0_20260210
["timestamp","ask_amount","ask_price","bid_price","bid_amount"]
[1770722037717,3.95765109,84.303,84.266,3.70747248]
[1770722038017,20.11060489,84.302,84.266,3.70747248]
[1770722038517,3.95765109,84.303,84.266,3.70747248]
[1770722038716,3.95765109,84.303,84.267,14.39867248]
[1770722039018,9.06497098,84.302,84.267,14.39867248]
[1770722039316,9.06497098,84.301,84.267,14.39867248]
[1770722039617,15.00323357,84.303,84.229,21.3919]
[1770722039618,3.95765109,84.294,84.256,3.70747248]
[1770722039806,3.95765109,84.289,84.245,3.70747248]
[1770722040012,3.95765109,84.287,84.245,3.70747248]
[1770722040212,3.95765109,84.285,84.245,3.70747248]
[1770722040520,13.02262207,84.284,84.245,3.70747248]
[1770722040721,9.06497098,84.283,84.245,14.40137248]
[1770722040915,9.06497098,84.282,84.245,14.40137248]
[1770722041221,9.06497098,84.281,84.245,14.40137248]
[1770722041417,9.06497098,84.28,84.245,14.40137248]
[1770722041613,9.06497098,84.279,84.245,14.40137248]
[1770722041814,9.06497098,84.278,84.245,14.40137248]
[1770722042012,9.06497098,84.277,84.245,14.40137248]
[1770722042217,9.06497098,84.276,84.245,14.40137248]
[1770722042423,9.06497098,84.275,84.245,14.40137248]
[1770722042617,9.06497098,84.274,84.245,14.40137248]
[1770722042921,3.95765109,84.284,84.245,14.40137248]
[1770722042922,9.06497098,84.273,84.245,14.40137248]
[1770722043128,3.95765109,84.284,84.245,14.40137248]
[1770722043322,3.95765109,84.282,84.245,14.40137248]
[1770722043522,3.95765109,84.28,84.245,14.40137248]
[1770722043725,9.06853657,84.279,84.245,14.40137248]
[1770722044023,9.06853657,84.278,84.245,14.40137248]
[1770722044324,9.06853657,84.277,84.245,14.40137248]
[1770722044523,9.06853657,84.276,84.245,14.40137248]
[1770722044725,9.06853657,84.275,84.245,14.40137248]
[1770722044926,9.06853657,84.274,84.245,14.40137248]
[1770722045126,9.06853657,84.273,84.245,14.40137248]
[1770722045327,3.95765109,84.279,84.245,14.40137248]
[1770722045625,3.95765109,84.277,84.245,14.40137248]
[1770722045815,9.06816527,84.276,84.245,14.40137248]
[1770722046021,9.06816527,84.275,84.245,14.40137248]
[1770722046221,9.06816527,84.274,84.245,14.40137248]
[1770722046421,3.95765109,84.277,84.245,14.40137248]
[1770722046725,9.06587365,84.276,84.252,10.6931]
[1770722046926,9.06587365,84.275,84.252,10.6931]
[1770722047125,9.06587365,84.274,84.252,10.6931]
[1770722047326,3.95765109,84.277,84.252,10.6931]
[1770722047625,3.95765109,84.287,84.252,10.6931]
[1770722047828,9.06625757,84.286,84.252,10.6931]
[1770722048029,9.06625757,84.285,84.252,10.6931]
[1770722048223,9.06625757,84.284,84.252,10.6931]
[1770722048429,9.06625757,84.283,84.252,10.6931]
[1770722048632,9.06625757,84.282,84.247,3.70747248]
[1770722048931,3.95765109,84.287,84.247,3.70747248]
[1770722048932,9.06625757,84.281,84.247,3.70747248]
[1770722049128,9.06625757,84.28,84.247,3.70747248]
[1770722049328,9.06625757,84.279,84.247,3.70747248]
[1770722049528,9.06625757,84.278,84.247,3.70747248]
[1770722049728,3.95765109,84.287,84.247,3.70747248]
[1770722049928,9.06606163,84.286,84.247,3.70747248]
[1770722050129,9.06606163,84.285,84.247,3.70747248]
[1770722050332,9.06606163,84.284,84.247,3.70747248]
[1770722050531,3.95765109,84.287,84.247,3.70747248]
[1770722050532,9.06606163,84.283,84.247,3.70747248]
[1770722050733,9.06606163,84.282,84.247,3.70747248]
[1770722050922,9.06606163,84.281,84.247,3.70747248]
[1770722051127,9.06606163,84.28,84.247,3.70747248]
[1770722051429,9.06606163,84.279,84.247,3.70747248]
[1770722051636,9.06606163,84.278,84.247,3.70747248]
[1770722051831,11.04558248,84.297,84.227,10.6963]
[1770722051832,3.95765109,84.283,84.227,10.6963]
[1770722052031,3.95765109,84.276,84.228,3.70747248]
[1770722052334,94.72,84.3,84.231,3.70747248]
[1770722052335,3.95765109,84.274,84.231,3.70747248]
[1770722052536,9.06494158,84.273,84.231,3.70747248]
[1770722052832,9.06494158,84.272,84.231,3.70747248]
[1770722053033,9.06494158,84.271,84.231,3.70747248]
[1770722053234,3.95765109,84.274,84.231,3.70747248]
[1770722053433,9.06572813,84.273,84.231,3.70747248]
[1770722053634,9.06572813,84.272,84.233,3.70747248]
[1770722053834,3.95765109,84.274,84.233,3.70747248]
[1770722054830,10.6905,84.273,84.233,3.70747248]
[1770722056540,11.04558248,84.292,84.242,3.70747248]
[1770722056541,3.95765109,84.285,84.242,3.70747248]
[1770722056835,9.13654854,84.284,84.242,3.70747248]
[1770722057136,9.13654854,84.283,84.242,3.70747248]
[1770722057340,9.13654854,84.282,84.254,3.70747248]
[1770722057542,9.13654854,84.281,84.254,3.70747248]
[1770722057837,9.13654854,84.28,84.254,3.70747248]
[1770722058140,9.13654854,84.279,84.254,3.70747248]
[1770722058338,9.13654854,84.278,84.254,3.70747248]
[1770722058540,3.95765109,84.294,84.26,10.692]
[1770722058837,3.95765109,84.292,84.26,10.692]
[1770722059140,13.09493166,84.291,84.26,10.692]
[1770722059333,9.13728057,84.29,84.26,10.692]
[1770722059632,9.13728057,84.289,84.26,10.692]
[1770722059831,9.13728057,84.288,84.26,10.692]
[1770722060032,9.13728057,84.287,84.26,10.692]
[1770722060232,9.13728057,84.286,84.26,10.692]
[1770722060425,9.13728057,84.286,84.254,3.70747248]
[1770722060426,9.13728057,84.285,84.254,3.70747248]
[1770722060631,9.13728057,84.284,84.254,3.70747248]
[1770722060831,9.13728057,84.283,84.254,3.70747248]
[1770722061027,9.13728057,84.282,84.254,3.70747248]
[1770722061235,9.13728057,84.281,84.255,10.6927]
[1770722061539,9.13728057,84.28,84.255,10.6927]
[1770722061739,9.13728057,84.279,84.255,10.6927]
[1770722061939,9.13728057,84.278,84.255,10.6927]
[1770722062141,3.95765109,84.291,84.255,10.6927]
[1770722062333,3.9726819,84.289,84.255,10.6927]
[1770722062534,9.13964533,84.288,84.255,10.6927]
[1770722062734,9.13964533,84.287,84.255,10.6927]
[1770722062940,9.13964533,84.286,84.255,10.6927]
[1770722063139,9.13964533,84.285,84.255,10.6927]
[1770722063336,9.13964533,84.284,84.255,10.6927]
[1770722063531,9.13964533,84.283,84.255,10.6927]
[1770722063730,9.13964533,84.282,84.255,10.6927]
[1770722064034,9.13964533,84.281,84.255,10.6927]
[1770722064243,9.13964533,84.28,84.255,10.6927]
[1770722064440,9.13964533,84.279,84.255,10.6927]
[1770722064741,9.13964533,84.278,84.255,10.6927]
[1770722064940,3.9726819,84.288,84.255,10.6927]
[1770722065141,9.13989633,84.287,84.255,10.6927]
[1770722065439,9.13989633,84.286,84.255,10.6927]
[1770722065640,9.13989633,84.285,84.255,10.6927]
[1770722065936,9.13989633,84.284,84.259,3.91162028]
[1770722066135,9.13989633,84.283,84.259,3.91162028]
[1770722066343,9.13989633,84.282,84.259,3.91162028]
[1770722066639,9.13989633,84.281,84.259,3.91162028]
[1770722066848,9.13989633,84.28,84.26,10.6921]
[1770722067139,9.13989633,84.279,84.26,10.6921]
[1770722067342,3.9726819,84.289,84.26,10.6921]
[1770722067531,3.9726819,84.287,84.253,10.6929]
[1770722067732,3.9726819,84.285,84.253,10.6929]
[1770722067931,13.11268858,84.284,84.253,10.6929]
[1770722068135,9.14000668,84.283,84.253,10.6929]
[1770722068337,9.14000668,84.282,84.253,10.6929]
[1770722068536,9.14000668,84.281,84.253,10.6929]
[1770722068737,9.14000668,84.28,84.258,10.6922]
[1770722068945,3.9726819,84.284,84.258,10.6922]
[1770722069138,9.13985561,84.283,84.258,10.6922]
[1770722069341,9.13985561,84.282,84.258,10.6922]
[1770722069540,9.13985561,84.281,84.258,10.6922]
[1770722069742,9.13985561,84.28,84.258,10.6922]
[1770722069941,3.9726819,84.284,84.258,10.6922]
[1770722070139,9.13995102,84.283,84.258,10.6922]
[1770722070340,3.9726819,84.281,84.249,10.6934]
[1770722070542,3.9726819,84.279,84.249,10.6934]
[1770722070737,3.9726819,84.277,84.249,10.6934]
[1770722070941,13.11263292,84.276,84.249,10.6934]
[1770722071145,9.13995102,84.275,84.249,10.6934]
[1770722071442,9.13995102,84.274,84.249,10.6934]
[1770722071641,9.13995102,84.273,84.249,10.6934]
[1770722071838,9.13995102,84.272,84.249,10.6934]
[1770722072038,9.13995102,84.271,84.249,10.6934]
[1770722072234,3.9726819,84.276,84.249,10.6934]
[1770722072435,13.11389554,84.275,84.249,10.6934]
[1770722072641,9.14121364,84.274,84.249,10.6934]
[1770722072944,9.14121364,84.273,84.249,10.6934]
[1770722073145,9.14121364,84.272,84.249,10.6934]
[1770722073339,9.14121364,84.271,84.249,10.6934]
[1770722073546,3.9726819,84.275,84.249,10.6934]
[1770722073741,9.14076031,84.274,84.249,10.6934]
[1770722073940,9.14076031,84.273,84.249,10.6934]
[1770722074134,9.14076031,84.272,84.249,10.6934]
[1770722074334,9.14076031,84.271,84.249,10.6934]
[1770722074539,3.9726819,84.275,84.249,10.6934]
[1770722074738,9.14043311,84.274,84.249,10.6934]
[1770722075047,9.14043311,84.273,84.249,10.6934]
[1770722075249,9.14043311,84.272,84.249,10.6934]
[1770722075547,9.14043311,84.271,84.249,10.6934]
[1770722075747,3.9726819,84.275,84.249,10.6934]
[1770722075951,9.14035271,84.274,84.249,10.6934]
[1770722076247,9.14035271,84.273,84.249,10.6934]
[1770722076444,9.14035271,84.272,84.249,10.6934]
[1770722076652,3.9726819,84.269,84.226,3.91162028]
[1770722076841,3.9726819,84.267,84.226,3.91162028]
[1770722077046,3.9726819,84.265,84.226,3.91162028]
[1770722077252,3.9726819,84.263,84.226,3.91162028]
[1770722077455,9.13679603,84.262,84.226,3.91162028]
[1770722077649,9.13679603,84.261,84.226,3.91162028]
[1770722077849,9.13679603,84.26,84.226,3.91162028]
[1770722078152,3.9726819,84.263,84.226,3.91162028]
[1770722078349,9.1367869,84.262,84.226,3.91162028]
[1770722078548,9.1367869,84.261,84.226,3.91162028]
[1770722078749,3.9726819,84.263,84.235,10.6952]
[1770722078949,9.13542563,84.262,84.235,10.6952]
[1770722079253,9.13542563,84.261,84.235,10.6952]
[1770722079443,3.9726819,84.263,84.235,10.6952]
[1770722079648,9.13579775,84.262,84.235,10.6952]
[1770722079948,13.10847965,84.261,84.235,10.6952]
[1770722080258,3.9726819,84.259,84.226,3.91162028]
[1770722080454,9.13603053,84.258,84.226,3.91162028]
[1770722080748,9.13603053,84.257,84.226,3.91162028]
[1770722080951,9.13603053,84.256,84.226,3.91162028]
[1770722081150,9.13603053,84.255,84.226,3.91162028]
[1770722081352,9.13603053,84.254,84.226,3.91162028]
[1770722081552,3.9726819,84.258,84.226,3.91162028]
[1770722081751,9.13066215,84.257,84.226,3.91162028]
[1770722081952,9.13066215,84.256,84.226,3.91162028]
[1770722082151,9.13066215,84.255,84.226,3.91162028]
[1770722082446,3.9726819,84.258,84.226,3.91162028]
[1770722082651,9.12851202,84.257,84.226,3.91162028]
[1770722082848,9.12851202,84.256,84.226,3.91162028]
[1770722083054,9.12851202,84.255,84.226,3.91162028]
[1770722083251,3.9726819,84.258,84.226,3.91162028]
[1770722083451,9.12677828,84.257,84.226,3.91162028]
[1770722083656,9.12677828,84.256,84.226,3.91162028]
[1770722083848,3.9726819,84.258,84.226,3.91162028]
[1770722084053,9.12677828,84.257,84.226,3.91162028]
[1770722084355,9.12677828,84.256,84.226,3.91162028]
[1770722084656,3.9726819,84.258,84.226,3.91162028]
[1770722084846,9.12582638,84.257,84.226,3.91162028]
[1770722085050,10.6927,84.255,84.226,3.91162028]
[1770722086456,3.9726819,84.258,84.226,3.91162028]
[1770722086855,9.10254211,84.257,84.226,3.91162028]
[1770722087051,10.6919,84.262,84.226,3.91162028]
[1770722087256,9.10254758,84.261,84.226,3.91162028]
[1770722087456,9.10254758,84.26,84.226,3.91162028]
[1770722087652,10.6919,84.262,84.226,3.91162028]
[1770722087958,3.9726819,84.26,84.226,3.91162028]
[1770722092264,10.6925,84.258,84.226,3.91162028]
[1770722093965,3.79496916,84.255,84.215,3.876554]
[1770722094169,3.79496916,84.253,84.215,3.876554]
[1770722095161,14.48906916,84.245,84.215,3.876554]
[1770722095863,3.79496916,84.245,84.215,3.876554]
[1770722099262,10.6932,84.251,84.215,3.876554]
[1770722099468,10.6922,84.26,84.221,3.876554]
[1770722100665,10.6922,84.26,84.221,14.573554]
[1770722100869,10.6922,84.26,84.222,3.876554]
[1770722101770,10.6925,84.258,84.222,3.876554]
[1770722101972,3.79496916,84.249,84.21,3.876554]
[1770722102674,14.48976916,84.239,84.21,3.876554]
[1770722106377,3.79496916,84.238,84.203,10.6993]
[1770722106579,3.79496916,84.236,84.2,3.876554]
[1770722107683,3.79496916,84.236,84.202,10.6994]
[1770722108182,3.79496916,84.236,84.175,94.74]
[1770722108183,3.79496916,84.236,84.189,3.876554]
[1770722108373,3.79496916,84.231,84.19,10.7009]
[1770722109281,14.49206916,84.221,84.189,3.876554]
[1770722109484,3.79496916,84.22,84.18,10.7021]
[1770722109682,3.79496916,84.22,84.18,14.578654]
[1770722110377,3.79496916,84.218,84.172,10.7031]
[1770722111175,10.698,84.214,84.177,10.7026]
[1770722111381,10.698,84.214,84.178,3.876554]
[1770722114181,3.79496916,84.218,84.181,3.876554]
[1770722114686,3.79496916,84.249,84.201,3.876554]
[1770722115780,14.48956916,84.241,84.201,3.876554]
[1770722116784,3.79496916,84.24,84.201,3.876554]
[1770722117581,3.79496916,84.24,84.202,10.6994]
[1770722117784,3.79496916,84.24,84.202,14.575954]
[1770722118283,10.6937,84.248,84.205,3.876554]
[1770722118492,9.06682568,84.247,84.205,3.876554]
[1770722118681,3.79496916,84.245,84.205,3.876554]
[1770722119392,12.86133512,84.244,84.205,3.876554]
[1770722119690,3.79496916,84.242,84.205,3.876554]
[1770722120890,3.82115947,84.239,84.205,3.876554]
[1770722122086,3.82115947,84.234,84.191,10.7007]
[1770722122292,3.82115947,84.229,84.182,3.93691037]
[1770722122490,3.82115947,84.227,84.182,3.93691037]
[1770722122688,3.82115947,84.224,84.183,10.7018]
[1770722123687,3.82115947,84.222,84.183,10.7018]
[1770722123888,3.82115947,84.219,84.182,3.93691037]
[1770722124285,3.82115947,84.208,84.171,3.93691037]
[1770722124596,3.82115947,84.208,84.171,14.64021037]
[1770722127796,10.6987,84.209,84.174,3.93691037]
[1770722134988,10.6987,84.209,84.175,10.7028]
[1770722135189,3.82115947,84.217,84.176,3.93691037]
[1770722136200,3.82115947,84.214,84.178,3.93691037]
[1770722137704,10.6983,84.212,84.178,3.93691037]
[1770722138001,3.82115947,84.211,84.178,3.93691037]
[1770722138203,3.69586288,84.21,84.178,3.93691037]
[1770722140200,3.82115947,84.211,84.178,3.93691037]
[1770722143104,10.6992,84.205,84.178,3.93691037]
[1770722144702,14.52035947,84.205,84.168,3.93691037]
[1770722144900,10.6996,84.201,84.168,3.93691037]
[1770722147302,10.6996,84.201,84.16,3.69586288]
[1770722147303,10.6983,84.212,84.174,3.93691037]
[1770722148504,14.51945947,84.212,84.174,3.93691037]
[1770722148703,14.51945947,84.212,84.175,14.63971037]
[1770722149205,10.6985,84.21,84.175,14.63971037]
[1770722149406,10.6985,84.21,84.176,3.93691037]
[1770722151208,9.05682466,84.209,84.176,3.93691037]
[1770722151411,18.3820281,84.22,84.183,4.0357773]
[1770722151609,13.04670549,84.219,84.183,4.0357773]
[1770722151810,13.04670549,84.218,84.183,4.0357773]
[1770722152006,3.98886522,84.218,84.183,4.0357773]
[1770722152604,3.98886522,84.229,84.192,4.0357773]
[1770722152908,3.98886522,84.229,84.18,3.69586288]
[1770722152909,3.98886522,84.219,84.171,4.0357773]
[1770722153109,14.72744331,84.262,84.127,35.67]
[1770722153110,3.98886522,84.198,84.162,4.0357773]
[1770722153510,3.98886522,84.226,84.162,4.0357773]
[1770722153702,3.69586288,84.21,84.17,4.0357773]
[1770722154011,3.98886522,84.208,84.17,4.0357773]
[1770722154710,3.98886522,84.208,84.171,10.7034]
[1770722160317,3.98886522,84.208,84.171,14.7391773]
[1770722160519,3.98886522,84.208,84.172,4.0357773]
[1770722161019,3.98886522,84.208,84.176,4.0357773]
[1770722161212,3.98886522,84.199,84.151,4.0357773]
[1770722162815,14.68886522,84.198,84.161,10.7046]
[1770722163215,3.98886522,84.197,84.161,10.7046]
[1770722163616,3.98886522,84.197,84.161,14.7403773]
[1770722165217,3.98886522,84.197,84.162,4.0357773]
[1770722166324,9.07433714,84.196,84.162,4.0357773]
[1770722166616,3.98886522,84.197,84.162,4.0357773]
[1770722166821,9.07433714,84.196,84.162,4.0357773]
[1770722167123,3.98886522,84.197,84.162,4.0357773]
[1770722167423,9.07571709,84.196,84.162,4.0357773]
[1770722167622,9.07571709,84.195,84.162,4.0357773]
[1770722167815,3.98886522,84.197,84.162,4.0357773]
[1770722167816,9.07571709,84.194,84.162,4.0357773]
[1770722168021,9.07571709,84.193,84.162,4.0357773]
[1770722168222,3.98886522,84.197,84.162,4.0357773]
[1770722168422,9.07551463,84.196,84.162,4.0357773]
[1770722168621,3.98886522,84.197,84.162,4.0357773]
[1770722168622,9.07551463,84.195,84.162,4.0357773]
[1770722168920,3.69586288,84.19,84.152,4.0357773]
[1770722169121,3.98886522,84.188,84.152,4.0357773]
[1770722169324,3.98886522,84.186,84.152,4.0357773]
[1770722169719,10.702,84.182,84.144,10.7068]
[1770722169917,3.98886522,84.181,84.144,10.7068]
[1770722170318,3.98886522,84.181,84.144,14.7425773]
[1770722170720,3.98886522,84.181,84.148,10.7062]
[1770722170918,3.98886522,84.181,84.149,4.0357773]
[1770722171722,3.98886522,84.181,84.15,10.7059]
[1770722180630,3.98886522,84.181,84.15,14.6970635]
[1770722181030,3.98886522,84.181,84.151,3.82666369]
[1770722182333,10.702,84.183,84.151,3.82666369]
[1770722189541,10.7011,84.19,84.151,3.82666369]
[1770722194947,10.7011,84.19,84.153,3.82666369]
[1770722197044,21.395,84.218,84.129,94.82]
[1770722197045,3.81131023,84.215,84.171,3.82666369]
[1770722197344,3.81131023,84.213,84.171,3.82666369]
[1770722197544,12.85799105,84.212,84.171,3.82666369]
[1770722197748,3.81131023,84.212,84.171,3.82666369]
[1770722198947,3.81131023,84.206,84.171,3.82666369]
[1770722199756,10.6992,84.204,84.171,3.82666369]
[1770722202357,3.81131023,84.203,84.171,3.82666369]
[1770722202957,3.81131023,84.203,84.173,3.82666369]
[1770722205558,10.6984,84.21,84.173,3.82666369]
[1770722205860,9.05385219,84.209,84.173,3.82666369]
[1770722206059,9.05385219,84.208,84.173,3.82666369]
[1770722206361,10.6984,84.21,84.173,3.82666369]
[1770722206558,9.05387039,84.209,84.173,3.82666369]
[1770722206762,9.05387039,84.208,84.173,3.82666369]
[1770722207058,10.6984,84.21,84.173,3.82666369]
[1770722207357,10.6984,84.21,84.126,21.4181]
[1770722207358,3.81131023,84.213,84.181,3.82666369]
[1770722207662,10.6975,84.218,84.181,3.82666369]
[1770722208354,10.6981,84.213,84.181,3.82666369]
[1770722209560,3.81131023,84.218,84.181,3.82666369]
[1770722209857,12.86023824,84.217,84.181,3.82666369]
[1770722210053,3.81131023,84.217,84.181,3.82666369]
[1770722212159,4.0354859,84.215,84.169,3.8290672]
[1770722212458,4.0354859,84.213,84.169,3.8290672]
[1770722212765,4.0354859,84.211,84.169,3.8290672]
[1770722212969,4.0354859,84.209,84.169,3.8290672]
[1770722213967,4.0354859,84.208,84.169,14.5326672]
[1770722215768,4.0354859,84.206,84.169,14.5326672]
[1770722217566,10.6992,84.204,84.169,14.5326672]
[1770722217760,4.0354859,84.203,84.169,14.5326672]
[1770722222171,4.0354859,84.218,84.18,3.69460946]
[1770722222373,9.04347981,84.217,84.181,3.8290672]
[1770722222564,4.0354859,84.218,84.181,3.8290672]
[1770722223771,4.0354859,84.218,84.182,10.702]
[1770722223971,4.0354859,84.218,84.183,3.8290672]
[1770722225371,13.08092077,84.217,84.183,3.8290672]
[1770722225565,4.0354859,84.217,84.183,3.8290672]
[1770722226268,14.7331859,84.216,84.183,3.8290672]
[1770722226472,4.0354859,84.215,84.183,3.8290672]
[1770722227169,4.0354859,84.215,84.175,10.7028]
[1770722227368,4.0354859,84.213,84.175,10.7028]
[1770722227575,4.0354859,84.211,84.175,10.7028]
[1770722228974,4.0354859,84.211,84.179,10.7023]
[1770722229277,4.0354859,84.211,84.18,3.8290672]
[1770722234378,9.0528991,84.21,84.18,3.8290672]
[1770722234574,4.0354859,84.211,84.18,3.8290672]
[1770722234775,9.05299531,84.21,84.18,3.8290672]
[1770722234975,4.0354859,84.211,84.18,3.8290672]
[1770722235177,4.0354859,84.209,84.18,3.8290672]
[1770722239286,8.9985532,84.208,84.18,3.8290672]
[1770722239485,10.697,84.222,84.185,3.8290672]
[1770722239677,4.0354859,84.228,84.191,3.8290672]
[1770722240077,14.7316859,84.228,84.191,3.8290672]
[1770722240274,14.7316859,84.228,84.185,10.7015]
[1770722240275,3.83750527,84.238,84.201,3.7657935]
[1770722240484,3.83750527,84.25,84.211,3.7657935]
[1770722240784,9.00051059,84.249,84.211,3.7657935]
[1770722240980,3.77966225,84.262,84.221,3.77698546]
[1770722241289,8.99268523,84.261,84.221,3.77698546]
[1770722241485,8.99268523,84.26,84.221,3.77698546]
[1770722241686,3.77966225,84.262,84.221,3.77698546]
[1770722241687,19.68488523,84.259,84.221,3.77698546]
[1770722241888,8.99268523,84.258,84.221,3.77698546]
[1770722242088,3.77966225,84.262,84.221,3.77698546]
[1770722242278,3.77966225,84.26,84.221,3.77698546]
[1770722242682,10.6927,84.256,84.221,3.77698546]
[1770722243492,3.77966225,84.26,84.221,3.77698546]
[1770722243886,3.77966225,84.258,84.221,3.77698546]
[1770722244184,3.77966225,84.256,84.201,3.77698546]
[1770722244384,3.77966225,84.254,84.201,3.77698546]
[1770722244591,8.97757467,84.255,84.201,3.77698546]
[1770722244592,3.77966225,84.243,84.203,10.6992]
[1770722244783,3.77966225,84.243,84.201,3.77698546]
[1770722244986,3.77966225,84.239,84.191,3.77698546]
[1770722245391,3.77966225,84.228,84.191,3.77698546]
[1770722245992,3.77966225,84.228,84.192,10.7007]
[1770722246191,3.77966225,84.228,84.192,14.47768546]
[1770722246384,3.77966225,84.239,84.193,3.77698546]
[1770722247393,3.77966225,84.239,84.204,3.77698546]
[1770722247781,3.77966225,84.25,84.204,3.77698546]
[1770722247994,3.77966225,84.262,84.211,3.77698546]
[1770722248190,3.77966225,84.262,84.221,3.77698546]
[1770722249187,3.77966225,84.259,84.209,3.77698546]
[1770722249990,3.77966225,84.255,84.209,3.77698546]
[1770722250493,3.77966225,84.255,84.217,3.77698546]
[1770722251692,3.77966225,84.255,84.218,10.6974]
[1770722252097,3.77966225,84.266,84.221,3.77698546]
[1770722252399,3.77966225,84.266,84.229,10.696]
[1770722254097,3.77966225,84.266,84.23,3.77698546]
[1770722254297,10.6907,84.271,84.23,3.77698546]
[1770722254298,10.6907,84.271,84.231,3.77698546]
[1770722255091,10.691,84.269,84.231,3.77698546]
[1770722255288,3.77966225,84.268,84.222,10.6968]
[1770722256198,3.77966225,84.258,84.219,3.77698546]
[1770722256392,3.77966225,84.258,84.215,10.6978]
[1770722256594,3.77966225,84.258,84.21,3.69103813]
[1770722256993,3.77966225,84.258,84.207,3.77698546]
[1770722257797,10.6934,84.25,84.208,3.77698546]
[1770722258097,7.47070038,84.27,84.221,3.77698546]
[1770722258302,3.77966225,84.27,84.221,3.77698546]
[1770722259703,10.6926,84.257,84.221,3.77698546]
[1770722260200,3.77966225,84.27,84.221,3.77698546]
[1770722260504,3.77966225,84.27,84.231,3.77698546]
[1770722261791,3.77966225,84.27,84.232,3.77698546]
[1770722262495,3.77966225,84.27,84.234,3.77698546]
[1770722262698,10.6903,84.274,84.24,3.69103813]
[1770722262903,10.6903,84.274,84.234,3.77698546]
[1770722264406,3.77966225,84.267,84.226,10.6964]
[1770722264603,3.77966225,84.267,84.226,14.47338546]
[1770722265304,10.6914,84.266,84.229,10.696]
[1770722267007,10.6914,84.266,84.232,3.77698546]
[1770722270300,14.43442138,84.266,84.232,3.77698546]
[1770722270511,3.74302138,84.265,84.232,3.77698546]
[1770722271902,3.74302138,84.265,84.233,10.6955]
[1770722273206,3.74302138,84.265,84.233,14.47710537]
[1770722276304,3.74302138,84.265,84.235,10.6951]
[1770722276708,14.43312138,84.276,84.236,3.78160537]
[1770722276907,3.74302138,84.287,84.246,3.78160537]
[1770722277215,3.74302138,84.305,84.251,3.78160537]
[1770722277405,3.74302138,84.303,84.251,3.78160537]
[1770722277605,3.74302138,84.301,84.251,3.78160537]
[1770722278209,3.74302138,84.301,84.268,10.6911]
[1770722279909,3.74302138,84.298,84.255,10.6927]
[1770722280113,3.74302138,84.296,84.255,10.6927]
[1770722280308,3.74302138,84.286,84.248,3.78160537]
[1770722280609,3.74302138,84.279,84.231,3.78160537]
[1770722280914,3.74302138,84.269,84.218,3.78160537]
[1770722281108,3.74302138,84.259,84.218,3.78160537]
[1770722282104,10.6924,84.258,84.219,10.6972]
[1770722282304,3.74302138,84.257,84.219,10.6972]
[1770722282910,3.74302138,84.257,84.218,3.78160537]
[1770722283205,3.74302138,84.255,84.201,3.78160537]
[1770722283506,3.74302138,84.255,84.211,10.6983]
[1770722283913,3.74302138,84.255,84.212,3.78160537]
[1770722284208,3.74302138,84.253,84.212,3.78160537]
[1770722284714,3.74302138,84.253,84.213,10.698]
[1770722289117,3.74302138,84.253,84.213,14.47960537]
[1770722289408,3.74302138,84.253,84.217,10.6975]
[1770722289613,3.74302138,84.253,84.218,3.78160537]
[1770722290712,3.74302138,84.253,84.22,10.6971]
[1770722290912,3.74302138,84.249,84.205,3.78160537]
[1770722292818,3.74302138,84.249,84.21,10.6984]
[1770722293021,3.74302138,84.249,84.21,14.48000537]
[1770722293615,3.74302138,84.249,84.211,3.78160537]
[1770722293821,3.74302138,84.249,84.214,3.78160537]
[1770722296518,3.74302138,84.249,84.216,10.6977]
[1770722299325,3.74302138,84.249,84.216,14.47930537]
[1770722301223,14.37961029,84.258,84.221,14.74010812]
[1770722301528,12.78319463,84.257,84.221,14.74010812]
[1770722301724,9.09598434,84.256,84.221,14.74010812]
[1770722301924,3.68721029,84.257,84.221,14.74010812]
[1770722302124,9.09599145,84.256,84.221,14.74010812]
[1770722302423,3.68721029,84.257,84.221,14.74010812]
[1770722302627,9.09607186,84.256,84.221,14.74010812]
[1770722302815,3.68721029,84.257,84.221,14.74010812]
[1770722303019,9.09607186,84.256,84.221,14.74010812]
[1770722303221,3.68721029,84.257,84.221,14.74010812]
[1770722303421,9.09595201,84.256,84.221,14.74010812]
[1770722303623,3.68721029,84.257,84.221,14.74010812]
[1770722303833,9.09596277,84.256,84.221,14.74010812]
[1770722304031,10.6914,84.266,84.222,4.04320812]
[1770722304227,9.09629861,84.265,84.222,4.04320812]
[1770722304428,9.09629861,84.264,84.222,4.04320812]
[1770722304628,9.09629861,84.263,84.222,4.04320812]
[1770722304829,9.09629861,84.262,84.222,4.04320812]
[1770722305132,9.09629861,84.261,84.222,4.04320812]
[1770722305331,10.6914,84.266,84.222,4.04320812]
[1770722305531,10.6903,84.274,84.236,4.04320812]
[1770722306032,14.37751029,84.274,84.236,4.04320812]
[1770722307631,9.10289936,84.273,84.246,10.6938]
[1770722307834,3.68721029,84.285,84.247,4.04320812]